[Event "GER-ch Youth-U14 2022"]
[Site "Willingen"]
[Date "2022.06.05"]
[Round "2.3"]
[White "Ermitsch, Magnus"]
[Black "Jahnz, Laurin"]
[Result "1-0"]
[ECO "B10"]
[WhiteElo "2222"]
[BlackElo "1681"]
[Annotator "TA"]
[PlyCount "141"]
[EventDate "2022.06.05"]
[EventType "swiss"]
[EventRounds "9"]
[EventCountry "GER"]
[SourceTitle "playchess.com"]
[Source "ChessBase"]
[SourceQuality "1"]
[TimeControl "40/4500+30:900+30"]

{[%evp 10,141,27,17,21,20,25,8,36,30,25,30,60,53,50,52,64,56,68,47,66,51,80,85,89,-114,-111,-107,-115,-97,-121,-112,-105,-101,-50,-60,-54,-46,-15,-26,-41,-47,0,0,0,0,0,0,416,416,409,394,412,400,411,387,397,399,398,404,393,0,384,0,387,367,440,403,404,392,393,397,388,386,404,400,419,398,437,438,439,443,445,448,450,299,306,275,254,234,295,299,273,243,352,316,359,352,570,424,538,552,547,556,545,545,598,572,587,516,670,684,668,570,786,779,1382,1390,2184,1834,1341,1295,1241,1222,1163,1139,1128,1114,1078,1068,1398,1327,1154,922]} 1. e4 {[%emt 0:00:00]} c6 {[%emt 0:00:00]} 2. Nf3 {[%emt 0:00:00]} d5 {[%emt 0:00:00]} 3. Nc3 {[%emt 0:00:00]} dxe4 {[%emt 0:00:00]} 4. Nxe4 {[%emt 0:00:00]} Nf6 {[%emt 0:00:00]} 5. Qe2 {[%emt 0:00:00]} Nxe4 {[%emt 0:00:00]} 6. Qxe4 {[%emt 0:00:00]} Qd5 {[%emt 0:00:00] B11: Caro-Kann: Two Knights Variation.} 7. Qf4 {[%emt 0:00:00]} Qf5 {[%emt 0:00:00]} 8. Qe3 {[%emt 0:00:00]} Qe6 {[%emt 0:00:00] The position is equal.} 9. b3 {[%emt 0:00:00]} Qxe3+ {[%emt 0:00:00]} 10. fxe3 {[%emt 0:00:00]} Nd7 {[%emt 0:00:00]} 11. Bb2 {[%emt 0:00:00]} Nf6 {[%emt 0:00:00]} 12. O-O-O {[%emt 0:00:00] [#]} Bf5 $146 {[%emt 0:00:00]} ({Predecessor:} 12... g6 13. Bc4 Bg7 14. Ne5 O-O 15. a4 Ng4 16. Nxf7 Bxb2+ 17. Kxb2 Rxf7 18. Rdf1 e6 19. Rxf7 Kxf7 {0-1 (37) Reprintsev,A (2353)-Maly,A (2368) Chess.com INT 2020}) 13. Be2 {[%emt 0:00:00]} e6 {[%emt 0:01:12]} 14. Rhf1 {[%emt 0:00:00]} Be7 {[%emt 0:00:55]} 15. Ne5 {[%emt 0:00:00]} Bd6 {[%emt 0:19:32]} 16. h3 {[%emt 0:04:37] White is more active.} h5 {[%emt 0:12:39]} 17. Nxf7 $2 {[%emt 0:02:45]} Kxf7 $17 {[%emt 0:00:33]} 18. g4 {[%emt 0:00:09]} hxg4 {[%emt 0:00:04]} 19. hxg4 {[%emt 0:00:14]} Rh2 {[%emt 0:00:15] White must now prevent ...Be4.} 20. Bf3 {[%emt 0:04:41] [#] Against Be4} Bh7 {[%emt 0:05:31] Threatens to win with ...Kg8.} 21. g5 {[%emt 0:01:16] [#]} Ne8 {[%emt 0:04:08]} (21... Nd7 $1 $17 {Strongly threatening ...Kg8.} 22. Bxc6+ Ke7 23. Bxb7 Rb8) 22. Bxc6+ $1 $15 {[%emt 0:03:17]} Kg8 {[%emt 0:00:49]} 23. Bxb7 {[%emt 0:03:19][%cal Bc6b7,Bb7a6,Ba6c4,Bc4d3,Bd3g6][%mdl 32]} Rb8 {[%emt 0:02:36]} 24. Ba6 {[%emt 0:03:40]} Nc7 {[%emt 0:00:27]} 25. Bc4 {[%emt 0:00:31][%cal Og5g6]} Rf8 {[%emt 0:01:14]} (25... Be4 $15) 26. g6 $11 {[%emt 0:10:36]} Bxg6 {[%emt 0:02:02]} 27. Rg1 {[%emt 0:00:21]} Kh7 {[%emt 0:02:51]} 28. Bd3 {[%emt 0:09:22]} Rh6 {[%emt 0:03:04][%mdl 8192] White stays focused until the end.} (28... Bxd3 $11 {and Black has nothing to worry.} 29. Rxg7+ Kh6 30. cxd3 Rc8) 29. Rxg6 $18 {[%emt 0:04:30][%mdl 64] Deflection} Rxg6 {[%emt 0:00:08]} 30. Rh1+ {[%emt 0:02:29][%mdl 64] Deflection} Kg8 {[%emt 0:00:03] ...Rg5 is the strong threat.} 31. Bxg6 {[%emt 0:00:21] This bishop pair is nice.} Rf2 {[%emt 0:00:07]} 32. Bd3 {[%emt 0:04:15]} Rg2 {[%emt 0:02:12]} 33. Be4 {[%emt 0:07:27]} Rg4 {[%emt 0:00:27]} 34. Bf3 {[%emt 0:05:40]} Rg3 {[%emt 0:00:31]} 35. Be4 {[%emt 0:02:53]} Rg4 $1 {[%emt 0:00:08]} 36. Bd3 {[%emt 0:00:09]} Rg2 $1 {[%emt 0:00:17]} 37. Kd1 {[%emt 0:01:12]} Bb4 {[%emt 0:02:05]} 38. c3 {[%emt 0:00:35]} Bc5 {[%emt 0:00:07]} 39. Bh7+ {[%emt 0:02:17]} Kf7 {[%emt 0:02:08]} 40. Be4 {[%emt 0:00:51]} Rf2 {[%emt 0:01:45]} 41. Bc1 {[%emt 0:15:21]} Ke7 {[%emt 0:20:51]} 42. Ke1 {[%emt 0:00:41]} Rf8 {[%emt 0:00:22]} 43. Rg1 {[%emt 0:01:22]} Ne8 {[%emt 0:01:24]} 44. d4 {[%emt 0:00:16]} Bd6 {[%emt 0:00:23]} 45. Bc6 {[%emt 0:00:34]} Rg8 {[%emt 0:00:34]} 46. e4 {[%emt 0:00:12]} e5 {[%emt 0:07:05]} 47. d5 {[%emt 0:02:07] Hoping for Bxe8.} Nf6 {[%emt 0:00:54]} 48. Bg5 {[%emt 0:00:19]} Rh8 {[%emt 0:00:08]} 49. Rg2 {[%emt 0:01:26] Prevents Rh2.} a5 {[%emt 0:01:31]} 50. Kd2 {[%emt 0:02:52]} Rh3 {[%emt 0:01:31]} 51. Bb5 {[%emt 0:00:32]} Bc5 {[%emt 0:01:36]} (51... Kf7 $142 52. Bxf6 Kxf6) 52. Bd3 {[%emt 0:00:48]} Kf7 {[%emt 0:03:29]} 53. Kc2 {[%emt 0:00:00]} Ne8 $2 {[%emt 0:00:00]} (53... Bd6 {might work better.} 54. a4 Nh5) 54. Bd2 {[%emt 0:00:00] White is clearly winning.} Nd6 {[%emt 0:00:00]} 55. b4 {[%emt 0:00:00]} axb4 {[%emt 0:00:00]} 56. cxb4 {[%emt 0:00:00]} Bd4 {[%emt 0:00:00]} 57. a4 {[%emt 0:00:00][%cal Ba2a4,Ba4a5][%mdl 32]} Rh4 {[%emt 0:00:00]} 58. Re2 {[%emt 0:00:00]} Kf6 {[%emt 0:00:00]} 59. a5 {[%emt 0:00:00]} g5 {[%emt 0:00:00]} 60. b5 {[%emt 0:00:00]} g4 {[%emt 0:00:00]} 61. Rg2 {[%emt 0:00:00]} Kg6 {[%emt 0:00:00]} 62. Bb4 {[%emt 0:00:00]} Nc8 {[%emt 0:00:00]} 63. d6 {[%emt 0:00:00]} Kg5 {[%emt 0:00:00]} 64. d7 {[%emt 0:00:00]} Rh8 {[%emt 0:00:00]} 65. dxc8=Q {[%emt 0:00:19]} Rxc8+ {[%emt 0:00:00]} 66. Kb3 {[%emt 0:00:08]} Kf4 {[%emt 0:00:00]} 67. Be2 {[%emt 0:01:02]} g3 {[%emt 0:00:00]} 68. Be1 {[%emt 0:00:15]} Kxe4 {[%emt 0:00:00]} 69. Rxg3 {[%emt 0:00:13]} Kd5 {[%emt 0:00:00]} 70. Bc3 {[%emt 0:00:18]} Bf2 {[%emt 0:00:00]} 71. Rg5 {[%emt 0:00:37] Weighted Error Value: White=0.35/Black=0.32} 1-0

[Event "GER-ch Youth-U14 2022"]
[Site "Willingen"]
[Date "2022.06.05"]
[Round "2.4"]
[White "Luebke, Florentin"]
[Black "Hagner, Bennet"]
[Result "1/2-1/2"]
[ECO "B18"]
[WhiteElo "1613"]
[BlackElo "2186"]
[Annotator "TA"]
[PlyCount "100"]
[EventDate "2022.06.05"]
[EventType "swiss"]
[EventRounds "9"]
[EventCountry "GER"]
[SourceTitle "playchess.com"]
[Source "ChessBase"]
[SourceQuality "1"]
[TimeControl "40/4500+30:900+30"]

{[%evp 10,100,30,20,17,9,88,97,145,40,70,-12,-12,-8,0,0,0,-76,-72,-68,-70,-112,-107,-111,-75,-113,-80,-100,-83,-91,-96,-93,-102,-97,-97,-102,-91,-93,-67,-90,-55,-76,-83,-91,-68,-71,-75,-129,-101,-98,-56,-60,-38,-77,-65,-65,0,0,0,0,0,0,0,0,0,0,0,0,0,-15,2,-70,0,0,0,0,0,0,0,-12,0,0,0,0,0,0,0,0,12,16,23,13,68]} 1. e4 {[%emt 0:00:00]} c6 {[%emt 0:00:00]} 2. d4 {[%emt 0:00:00]} d5 {[%emt 0:00:00]} 3. Nc3 {[%emt 0:00:00]} dxe4 {[%emt 0:00:00]} 4. Nxe4 {[%emt 0:00:00]} Bf5 {[%emt 0:00:00]} 5. Ng3 {[%emt 0:00:00]} Bg6 {[%emt 0:00:00]} 6. Nh3 {[%emt 0:00:00]} Nf6 $1 {[%emt 0:00:00][%cal Oc6c5][%mdl 4] is more profitable than 6...e6 at the moment. B18: Classical Caro-Kann: 4...Bf5 sidelines.} 7. Bc4 {[%emt 0:00:00]} e5 {[%emt 0:00:00] Inhibits Nf4.} (7... e6 $11) 8. dxe5 $16 {[%emt 0:00:00]} Qa5+ {[%emt 0:00:00]} (8... Qxd1+ $142 9. Kxd1 Nh5) 9. c3 {[%emt 0:00:00]} (9. Kf1 $16 Nd5 10. Qe2) 9... Qxe5+ $14 {[%emt 0:00:00]} 10. Qe2 {[%emt 0:00:00] [#]} ({Better is} 10. Kf1 $1 $14) 10... Qxe2+ $146 {[%emt 0:00:00]} ({Predecessor:} 10... Nbd7 11. Nf4 Bc5 12. Nxg6 hxg6 13. Bf4 Qxe2+ 14. Bxe2 O-O-O 15. Rd1 Nd5 16. Bc1 N7f6 {½-½ (72) Drozdowski,K (2478)-Cernousek,L (2464) Ceske Budejovice 2017}) 11. Kxe2 {[%emt 0:00:00]} Bc5 {[%emt 0:05:10]} 12. Re1 {[%emt 0:15:30]} O-O $36 {[%emt 0:02:53][%cal Bh8f8,Bf8e8,Be8e7][%mdl 2080] Black has some pressure.} 13. Ng5 {[%emt 0:09:55]} (13. Kf1 $11 {remains equal.}) 13... b5 $17 {[%emt 0:25:14]} 14. Bb3 {[%emt 0:06:45]} Re8+ {[%emt 0:05:30]} 15. Be3 {[%emt 0:00:25]} Ng4 {[%emt 0:00:15]} 16. Nf1 {[%emt 0:13:13]} Na6 {[%emt 0:11:27]} 17. Rac1 {[%emt 0:10:56]} Re7 {[%emt 0:12:10]} 18. h3 {[%emt 0:10:31]} Nxe3 {[%emt 0:00:30]} 19. fxe3 {[%emt 0:00:45]} Rae8 {[%emt 0:00:55]} 20. Kf2 {[%emt 0:00:22]} Bb6 {[%emt 0:05:54]} 21. Bc2 {[%emt 0:03:22]} Bxc2 {[%emt 0:01:29]} 22. Rxc2 {[%emt 0:00:05]} Nc5 {[%emt 0:00:18]} 23. Rd1 {[%emt 0:01:59] Inhibits Nd3+.} f5 {[%emt 0:01:53][%cal Of5f4] White must now prevent ...f4!} 24. g3 {[%emt 0:03:21]} g6 {[%emt 0:04:16]} 25. Nf3 {[%emt 0:00:46][%cal Bg5f3,Bf3d4,Bd4c6][%mdl 32]} Ne4+ {[%emt 0:00:24]} 26. Kg2 {[%emt 0:00:06]} a6 {[%emt 0:01:37]} 27. c4 {[%emt 0:01:14]} b4 {[%emt 0:02:27]} 28. Re2 {[%emt 0:00:46]} (28. c5 $142 Nxc5 29. Rd6) 28... Bc5 {[%emt 0:01:06]} 29. Rd3 {[%emt 0:01:58]} Nd6 {[%emt 0:01:13]} 30. Nd4 {[%emt 0:01:24]} Nxc4 {[%emt 0:01:00]} 31. Nxc6 {[%emt 0:00:08]} Re4 {[%emt 0:01:09]} ({Much worse is} 31... Nxe3+ 32. Kf3 Rc7 33. Nxb4 Bxb4 34. Nxe3 $11) 32. b3 {[%emt 0:01:18]} Nb6 {[%emt 0:01:28]} (32... Nxe3+ $15 33. Nxe3 Bxe3) 33. Rc2 $11 {[%emt 0:00:58]} Bf8 {[%emt 0:00:30]} 34. Kf2 {[%emt 0:02:19]} Rc8 {[%emt 0:01:05]} 35. Nd2 {[%emt 0:00:56]} Re6 {[%emt 0:00:25]} 36. Nd4 {[%emt 0:00:11] [#] Hoping for Rxc8. Pair of Knights!} Rxc2 {[%emt 0:00:51]} 37. Nxc2 {[%emt 0:00:21]} Rc6 {[%emt 0:00:19]} 38. Nd4 {[%emt 0:00:43]} Rc8 {[%emt 0:01:11]} 39. Kf3 {[%emt 0:02:01]} Bh6 {[%emt 0:01:02]} 40. e4 {[%emt 0:02:21]} ({White should play} 40. Ne2 $11) 40... Bxd2 {[%emt 0:01:08]} (40... Nd7 $1 $15 41. Nc6 Rxc6 42. Rxd7 Rc3+ 43. Kf2 Be3+ 44. Kf1 Bxd2 45. Rxd2 Rxg3 46. exf5 Rf3+ 47. Kg2 Rxf5) 41. Rxd2 $15 {[%emt 0:00:00][%mdl 4096] Endgame KRN-KRN} Rc3+ {[%emt 0:00:00]} 42. Kf4 {[%emt 0:00:00]} fxe4 {[%emt 0:00:00]} 43. Nc2 {[%emt 0:00:00]} Rd3 {[%emt 0:00:00]} 44. Re2 {[%emt 0:00:00]} a5 {[%emt 0:00:00]} 45. Ne3 {[%emt 0:00:00]} Nd7 {[%emt 0:00:00]} 46. Kxe4 {[%emt 0:00:00]} Nc5+ {[%emt 0:00:00]} 47. Kf4 {[%emt 0:00:00]} Kf7 {[%emt 0:00:00]} 48. Rc2 {[%emt 0:00:00]} Ne6+ {[%emt 0:01:43]} 49. Ke4 {[%emt 0:00:00]} Rd8 {[%emt 0:01:18]} 50. h4 {[%emt 0:00:00] Prevents Ng5+.} Ke7 {[%emt 0:04:00] Weighted Error Value: White=0.21 (precise) /Black=0.16 (very precise)} ({Black should try} 50... Kg7 $11) 1/2-1/2

[Event "GER-ch Youth-U14 2022"]
[Site "Willingen"]
[Date "2022.06.05"]
[Round "2.5"]
[White "Besou, Hussain"]
[Black "Chinguun Sundui"]
[Result "1-0"]
[ECO "B38"]
[WhiteElo "2094"]
[BlackElo "1731"]
[Annotator "TA"]
[PlyCount "81"]
[EventDate "2022.06.05"]
[EventType "swiss"]
[EventRounds "9"]
[EventCountry "GER"]
[SourceTitle "playchess.com"]
[Source "ChessBase"]
[SourceQuality "1"]
[TimeControl "40/4500+30:900+30"]

{[%evp 24,81,52,21,20,16,29,-12,24,24,36,0,20,19,24,10,79,0,64,49,54,54,60,44,101,102,95,64,68,62,78,83,80,75,104,102,258,204,214,207,212,234,288,266,343,313,372,366,579,578,667,657,971,930,5736,5169,1807,1539,29997,526]} 1. e4 {[%emt 0:00:00]} c5 {[%emt 0:00:00]} 2. Nf3 {[%emt 0:00:00]} g6 {[%emt 0:00:00]} 3. d4 {[%emt 0:00:00]} cxd4 {[%emt 0:00:00]} 4. Nxd4 {[%emt 0:00:00]} Bg7 {[%emt 0:00:00]} 5. c4 {[%emt 0:00:00]} Nc6 {[%emt 0:00:00]} 6. Be3 {[%emt 0:00:00]} d6 {[%emt 0:00:00]} 7. Nc3 {[%emt 0:00:00]} Nf6 {[%emt 0:00:00]} 8. Be2 {[%emt 0:00:00]} O-O {[%emt 0:00:00]} 9. O-O {[%emt 0:00:00]} Bd7 {[%emt 0:00:00]} 10. Rc1 {[%emt 0:00:00]} Nxd4 {[%emt 0:00:00]} 11. Bxd4 {[%emt 0:00:00]} Bc6 {[%emt 0:00:00]} 12. f3 {[%emt 0:00:00]} a5 {[%emt 0:00:00]} 13. Nd5 {[%emt 0:00:00]} Nd7 {[%emt 0:00:00] B38: Sicilian: Maroczy Bind with 5...Bg7 and 7...0-0.} 14. Bxg7 {[%emt 0:00:00]} Kxg7 {[%emt 0:00:00]} 15. Qd4+ {[%emt 0:00:00]} Kg8 {[%emt 0:00:00] The position is equal.} (15... e5 $5 {[%cal Re5d4]} 16. Qe3 f5 $11) 16. Rfd1 {[%emt 0:00:00]} Nc5 {[%emt 0:02:12]} 17. b3 {[%emt 0:03:26] [#]} Rb8 $146 {[%emt 0:08:04]} (17... e5 $5 {[%cal Re5d4]} 18. Qe3 Rc8 $11) ({Predecessor:} 17... Bxd5 18. cxd5 Qb6 19. Rc4 Rfc8 20. Rdc1 Qd8 21. f4 b5 22. R4c3 b4 23. Rc4 a4 24. Rxb4 axb3 25. axb3 {0-1 (49) Bemporad,F (2046)-Manfredi,V (2230) Milan 2012}) 18. Qe3 {[%emt 0:06:45]} Bxd5 {[%emt 0:09:26]} 19. Rxd5 {[%emt 0:02:37]} Nd7 {[%emt 0:10:59]} (19... Qb6 $11 {keeps the balance.}) 20. c5 {[%emt 0:03:05] 0x0.0020797e2068dp-1022s more active pieces. The black rooks are badly placed.} (20. Rcd1 $16) 20... Nf6 {[%emt 0:01:56]} (20... Rc8 $11) 21. Rdd1 $36 {[%emt 0:00:27][%mdl 2048] White has the initiative.} d5 {[%emt 0:07:21]} 22. e5 {[%emt 0:11:58]} Ne8 {[%emt 0:04:05]} 23. e6 {[%emt 0:00:06] Threatens to win with exf7+.} Nc7 {[%emt 0:02:56]} (23... Ng7 $14) 24. exf7+ $16 {[%emt 0:00:05]} Rxf7 {[%emt 0:01:14]} 25. Qc3 {[%emt 0:02:00]} Ra8 {[%emt 0:02:22]} 26. a3 {[%emt 0:02:37]} e6 {[%emt 0:05:47]} 27. b4 {[%emt 0:06:28]} axb4 {[%emt 0:02:25]} 28. axb4 {[%emt 0:00:08]} Ra2 {[%emt 0:00:42] [#]} 29. Bc4 {[%emt 0:00:40]} Rxg2+ {[%emt 0:06:20] This move loses the game for Black.} 30. Kxg2 $18 {[%emt 0:00:28]} Qg5+ {[%emt 0:00:06]} 31. Kh1 {[%emt 0:00:08]} dxc4 {[%emt 0:00:48]} 32. Qxc4 {[%emt 0:08:15]} Nd5 {[%emt 0:04:58]} 33. Qe4 {[%emt 0:02:17]} Nf4 {[%emt 0:05:47][%csl Gf4][%cal Rg5g2] [#]} 34. Rg1 {[%emt 0:00:07][%cal Bd1g1,Bg1g4,Bg4d4,Bd4d8,Bd8h8][%mdl 32] Prevents Qg2+.} Qh5 {[%emt 0:07:43]} 35. Rg4 {[%emt 0:08:16]} ({Less strong is} 35. c6 bxc6 36. Rxc6 (36. Qxc6 Nd5 $18) 36... Kg7 $18) 35... e5 {[%emt 0:02:53]} (35... Qf5 $142 36. Qxf5 Rxf5) 36. b5 {[%emt 0:06:01]} Nh3 {[%emt 0:01:52] And now ...Nf2+ would win.} 37. Rf1 {[%emt 0:01:19] Prevents Nf2+.} g5 {[%emt 0:01:41]} 38. Qxe5 {[%emt 0:00:47]} h6 {[%emt 0:00:36]} 39. Rd4 {[%emt 0:01:29]} Nf4 {[%emt 0:01:32]} 40. Rd8+ {[%emt 0:01:52]} Kh7 {[%emt 0:00:10]} 41. Rh8+ {[%emt 0:15:16] Weighted Error Value: White=0.12 (very precise) /Black=0.74} 1-0

[Event "GER-ch Youth-U14 2022"]
[Site "Willingen"]
[Date "2022.06.05"]
[Round "2.6"]
[White "Braeutigam, Alexander"]
[Black "Haubold, Christian Lucas"]
[Result "1/2-1/2"]
[ECO "E71"]
[WhiteElo "1749"]
[BlackElo "1921"]
[Annotator "TA"]
[PlyCount "73"]
[EventDate "2022.06.05"]
[EventType "swiss"]
[EventRounds "9"]
[EventCountry "GER"]
[SourceTitle "playchess.com"]
[Source "ChessBase"]
[SourceQuality "1"]
[TimeControl "40/4500+30:900+30"]

{[%evp 16,73,30,20,18,-32,0,-6,-2,-30,-39,-97,-78,-104,0,0,0,0,0,0,0,0,0,0,0,0,0,-66,-54,-145,-164,-144,-171,-136,-152,-133,-126,-243,-220,-307,-204,-514,-510,-511,-503,-484,-137,-131,-61,-61,-125,-137,-132,-146,-91,-8,-8,-47,0,0]} 1. d4 {[%emt 0:00:00]} Nf6 {[%emt 0:00:00]} 2. c4 {[%emt 0:00:00]} g6 {[%emt 0:00:00]} 3. Nc3 {[%emt 0:00:00]} Bg7 {[%emt 0:00:00]} 4. e4 {[%emt 0:00:00]} d6 {[%emt 0:00:00]} 5. h3 {[%emt 0:00:00]} O-O {[%emt 0:00:00]} 6. Nf3 {[%emt 0:00:00]} e5 {[%emt 0:00:00]} 7. d5 {[%emt 0:00:00]} a5 {[%emt 0:00:00]} 8. g4 {[%emt 0:00:00]} Na6 {[%emt 0:00:00]} 9. Be3 {[%emt 0:00:00]} Nd7 {[%emt 0:00:00][%cal Bf6d7,Bd7c5,Bc5b3,Bb3a1][%mdl 32] E90: King's Indian: Classical: Early deviations and 6 h3.} 10. Qc2 {[%emt 0:00:00]} (10. a3 $11) 10... Ndc5 {[%emt 0:00:00]} (10... f5 $5) 11. Rg1 {[%emt 0:00:00] [#]} Kh8 $146 {[%emt 0:00:00]} ({Predecessor:} 11... c6 12. a3 Bd7 13. O-O-O cxd5 14. Rxd5 Bc6 15. Rd1 b6 16. Be2 Qe7 17. h4 Nc7 {0-1 (40) Zhao,C (2398)-Silich,Y (2194) Moscow 2020}) 12. Bg5 {[%emt 0:00:00]} f6 {[%emt 0:00:00]} 13. Bh4 {[%emt 0:00:00]} (13. Be3 $15) 13... Nb4 {[%emt 0:00:00]} 14. Qb1 {[%emt 0:00:00]} c6 {[%emt 0:00:24]} (14... a4 $17) 15. a3 $11 {[%emt 0:01:06]} Nb3 {[%emt 0:00:19]} 16. axb4 {[%emt 0:00:25]} Nxa1 {[%emt 0:00:33]} 17. Qxa1 {[%emt 0:00:18] Threatens to win with b5.} Bxg4 $1 {[%emt 0:06:51]} 18. hxg4 {[%emt 0:00:31]} axb4 {[%emt 0:00:06]} 19. Na4 {[%emt 0:00:21] Hoping for b3.} Qa5 {[%emt 0:00:12]} 20. dxc6 {[%emt 0:03:05]} b3+ {[%emt 0:01:35]} 21. Kd1 {[%emt 0:02:17]} (21. Nd2 $1 $11 bxc6 22. Rg3 $1) 21... bxc6 $15 {[%emt 0:01:08]} 22. Nd2 {[%emt 0:01:40]} Qb4 $1 $17 {[%emt 0:01:32] Strongly threatening ...Bh6.} 23. Qa3 {[%emt 0:01:16]} Qxa3 {[%emt 0:01:39][%mdl 64] Remove Defender} ({Stronger than} 23... Rxa4 24. Qxb4 Rxb4 25. Ke2 $11) (23... Qxa4 24. Qxa4 Rxa4 25. Bd3 $15) 24. bxa3 {[%emt 0:01:00] And now Nc3 would win.} Rxa4 {[%emt 0:00:06]} 25. Nb1 {[%emt 0:03:34]} d5 {[%emt 0:02:05] ...g5 is the strong threat.} 26. exd5 {[%emt 0:02:41]} (26. Kc1 $17) 26... cxd5 $19 {[%emt 0:02:01]} 27. cxd5 {[%emt 0:03:03]} Rc8 {[%emt 0:01:02] Inhibits Nc3.} 28. Bd3 $2 {[%emt 0:13:02]} (28. Rg3 g5 29. Bxg5 fxg5 30. Rxb3) 28... e4 {[%emt 0:00:24]} 29. Bb5 {[%emt 0:00:37]} Rd4+ {[%emt 0:00:44]} 30. Ke2 {[%emt 0:00:37]} b2 $2 {[%emt 0:00:55]} (30... Rc2+ $19 {and Black stays clearly on top.} 31. Ke3 Rxd5) 31. Bc6 $17 {[%emt 0:01:44]} g5 {[%emt 0:00:39]} 32. Bg3 {[%emt 0:00:31]} Rc4 {[%emt 0:02:42]} ({Better is} 32... h5 $15) 33. Rd1 {[%emt 0:03:53] [#]} f5 $1 {[%emt 0:33:25]} 34. gxf5 {[%emt 0:01:14] [#]} Rc2+ $1 {[%emt 0:00:50]} 35. Rd2 {[%emt 0:02:49]} Rc1 {[%emt 0:01:42]} 36. Rd1 {[%emt 0:00:16]} Rc2+ {[%emt 0:08:43]} (36... h5 $1 $15) 37. Rd2 $1 {Weighted Error Value: White=0.32/Black=0.36} 1/2-1/2

[Event "GER-ch Youth-U14 2022"]
[Site "Willingen"]
[Date "2022.06.05"]
[Round "2.7"]
[White "Honisch, Alexander"]
[Black "Huber, Benedikt"]
[Result "1/2-1/2"]
[ECO "C88"]
[WhiteElo "1878"]
[BlackElo "2288"]
[Annotator "TA"]
[PlyCount "60"]
[EventDate "2022.06.05"]
[EventType "swiss"]
[EventRounds "9"]
[EventCountry "GER"]
[SourceTitle "playchess.com"]
[Source "ChessBase"]
[SourceQuality "1"]
[TimeControl "40/4500+30:900+30"]

{[%evp 14,60,28,21,69,72,138,26,37,35,37,43,119,41,46,38,37,-5,44,28,57,25,65,55,75,23,24,0,16,7,10,0,14,-29,-42,-33,-41,-33,0,0,0,0,0,0,13,0,-4,0,-6]} 1. e4 {[%emt 0:00:00]} e5 {[%emt 0:00:00]} 2. Nf3 {[%emt 0:00:00]} Nc6 {[%emt 0:00:00]} 3. Bb5 {[%emt 0:00:00]} a6 {[%emt 0:00:00]} 4. Ba4 {[%emt 0:00:00]} Nf6 {[%emt 0:00:00]} 5. O-O {[%emt 0:00:00]} Be7 {[%emt 0:00:00]} 6. Re1 {[%emt 0:00:00]} b5 {[%emt 0:00:00]} 7. Bb3 {[%emt 0:00:00]} d6 {[%emt 0:00:00]} 8. c3 {[%emt 0:00:00]} Nb8 {[%emt 0:00:00] C90: Closed Ruy Lopez with 7...d6: Early deviations.} (8... O-O $11) 9. d4 $14 {[%emt 0:00:00]} Nbd7 {[%emt 0:00:00] [#]} (9... Nc6 $142) 10. Nbd2 {[%emt 0:00:00]} ({Better is} 10. Bxf7+ $1 $16 {[%mdl 512]} Kxf7 11. Qb3+ d5 12. Ng5+ (12. exd5 Ke8 $16) 12... Kg8 13. Ne6) 10... O-O $11 {[%emt 0:00:00] White has an edge.} 11. Nf1 {[%emt 0:00:00]} Bb7 {[%emt 0:00:00]} 12. Ng3 {[%emt 0:00:00]} h6 {[%emt 0:00:00] [#]} (12... c5 $14) 13. a4 {[%emt 0:00:00]} (13. Nf5 $1 $16) 13... Re8 $14 {[%emt 0:00:00]} 14. Bc2 {[%emt 0:00:48]} Bf8 {[%emt 0:01:20] [#]} 15. Bd3 $146 {[%emt 0:03:28]} ({Predecessor:} 15. h3 Rb8 16. Nh2 d5 17. exd5 exd4 18. Rxe8 Qxe8 19. axb5 axb5 20. cxd4 Bxd5 21. Bf4 {0-1 (39) Seres,B (2239)-Birinyi,I (2081) Budapest 2011}) 15... Rb8 {[%emt 0:08:37]} (15... d5 $11) 16. Bd2 {[%emt 0:15:57]} Ba8 {[%emt 0:06:17]} 17. Qc2 {[%emt 0:03:49]} g6 {[%emt 0:07:19]} 18. axb5 {[%emt 0:04:58]} axb5 {[%emt 0:00:14]} 19. Ra7 {[%emt 0:00:30] White is more active.} (19. b4 $16) 19... c5 $11 {[%emt 0:16:39]} 20. b3 {[%emt 0:09:52] Against c4} Qb6 {[%emt 0:04:12]} 21. Qa2 {[%emt 0:05:06]} cxd4 {[%emt 0:15:04]} 22. cxd4 {[%emt 0:00:34]} ({Of course not} 22. b4 dxc3 23. Bxc3 (23. Be3 $2 Qd8 $19) 23... d5 $17) 22... exd4 {[%emt 0:00:25]} 23. Ra6 {[%emt 0:01:41][%mdl 64] Deflection} Qd8 {[%emt 0:01:24] aiming for ...Nc5.} 24. Nxd4 {[%emt 0:05:38]} Nc5 {[%emt 0:05:44]} 25. Bxb5 {[%emt 0:00:41]} Rxb5 {[%emt 0:06:45]} (25... Nxa6 {is more complex.} 26. Bxe8 Qb6 27. Bb5 Qxd4 28. Bxa6 Nxe4 29. Nxe4 Bxe4 30. Be3 Qc3) 26. Rxa8 {[%emt 0:08:23] The position is equal.} Qxa8 {[%emt 0:00:12]} 27. Qxa8 {[%emt 0:00:05]} Rxa8 {[%emt 0:00:03]} 28. Nxb5 {[%emt 0:00:10]} Nxb3 {[%emt 0:00:50]} 29. Bf4 {[%emt 0:02:24]} Nc5 {[%emt 0:03:25] And now ...Nd3 would win.} 30. Bxd6 {[%emt 0:05:54]} Ncxe4 {[%emt 0:01:39] Weighted Error Value: White=0.21 (precise) /Black=0.18 (very precise)} 1/2-1/2